bitfinex/quotes_ETHUSD_20240719
["timestamp","ask_amount","ask_price","bid_price","bid_amount"]
[1721406958061,7.47,3496.8,3496.0,2.2661]
[1721406958214,7.47,3496.8,3496.1,0.55144715]
[1721406958565,7.47,3496.8,3496.1,0.61740988]
[1721406959361,7.47,3496.8,3496.3,2.86014]
[1721406959563,7.47,3497.2,3496.4,2.86005]
[1721406959859,7.47,3497.2,3496.4,2.92598057]
[1721406960060,7.47,3497.2,3496.5,0.57862006]
[1721406960367,7.47,3497.2,3496.6,0.06590913]
[1721406961265,7.47,3497.2,3496.7,0.06589842]
[1721406961620,7.47,3497.2,3495.9,2.86044]
[1721406961853,7.47,3497.2,3496.0,0.06597345]
[1721406962056,7.47,3497.2,3496.1,0.32483408]
[1721406962372,7.47,3497.2,3496.2,0.06595201]
[1721406962721,7.47,3497.2,3495.9,2.86043]
[1721406962923,7.47,3497.2,3496.3,0.06633124]
[1721406963131,7.47,3497.2,3495.8,0.32192731]
[1721406963344,7.47,3497.2,3496.4,0.06632052]
[1721406963547,7.47,3497.2,3495.8,0.37912368]
[1721406963853,7.47,3497.2,3496.3,2.86009]
[1721406964064,7.47,3497.2,3496.4,0.06633834]
[1721406964363,7.47,3497.2,3495.9,2.86044]
[1721406964566,7.47,3497.2,3496.5,0.06632762]
[1721406964736,7.47,3497.2,3496.0,2.86037]
[1721406964937,7.47,3497.2,3496.6,0.0663169]
[1721406965150,7.47,3497.2,3496.1,0.60428373]
[1721406965521,3.0,3497.1,3496.2,0.06635978]
[1721406965724,2.2942,3497.0,3496.2,0.06635978]
[1721406965923,2.2942,3497.0,3495.8,0.32192731]
[1721406966620,2.2942,3497.0,3495.9,0.06639194]
[1721406966827,3.0,3497.1,3495.9,0.06639194]
[1721406967020,3.0,3497.1,3496.1,2.86026]
[1721406967274,7.47,3497.2,3496.2,0.29266519]
[1721406967562,7.47,3497.2,3496.6,5.12835]
[1721406967722,7.47,3497.2,3496.6,2.2685]
[1721406967921,7.47,3497.2,3496.7,0.06628124]
[1721406968536,7.47,3497.2,3496.4,2.86003]
[1721406968732,7.47,3497.2,3496.8,0.06627052]
[1721406968921,7.47,3497.2,3496.8,2.85969]
[1721406969122,12.19,3497.7,3496.9,2.8596]
[1721406969123,19.66,3497.7,3496.9,2.8596]
[1721406969377,19.66,3497.7,3496.9,2.9258598]
[1721406970224,19.66,3497.7,3496.9,0.0662598]
[1721406970426,19.66,3497.7,3496.9,0.60035478]
[1721406971439,19.66,3497.7,3496.9,0.0662598]
[1721406971762,19.66,3497.7,3496.4,2.4149]
[1721406972124,19.66,3497.7,3496.5,0.0662225]
[1721406973069,3.0,3497.6,3496.5,0.0662225]
[1721406973424,3.0,3497.6,3495.9,3.0]
[1721406973625,5.113,3497.5,3496.6,0.06621178]
[1721406973842,3.0,3497.4,3495.8,2.4483]
[1721406974259,3.0,3497.4,3495.9,0.06628682]
[1721406975935,3.0,3497.4,3495.8,5.30886]
[1721406976188,3.0,3497.4,3496.1,2.86027]
[1721406976340,3.0,3497.4,3496.2,0.29265461]
[1721406976671,2.297,3497.5,3496.2,0.35890927]
[1721406977642,2.297,3497.5,3496.2,0.29265461]
[1721406977859,2.297,3497.5,3496.3,0.06624394]
[1721406978263,2.297,3497.5,3495.8,2.4483]
[1721406978445,1.2767,3497.4,3495.9,0.24483]
[1721406978645,1.2767,3497.4,3495.9,0.31108299]
[1721406978646,4.2767,3497.4,3495.9,0.31108299]
[1721406982089,3.0,3497.4,3495.9,0.31108299]
[1721406982242,3.0,3497.6,3496.3,2.8601]
[1721406982439,3.0,3497.6,3496.4,0.06629738]
[1721406983241,0.12471794,3497.5,3496.1,2.86031]
[1721406983438,3.0,3497.6,3496.1,2.86031]
[1721406983749,1.047,3497.5,3496.2,0.66287882]
[1721406985076,1.047,3497.5,3496.3,2.86015]
[1721406985283,7.47,3497.7,3496.4,0.12346028]
[1721406985446,7.47,3497.7,3496.6,2.85992]
[1721406985641,7.47,3497.7,3496.9,2.85961]
[1721406986054,7.47,3497.7,3496.7,2.92600493]
[1721406986245,7.47,3497.7,3496.7,2.85977]
[1721406986440,7.47,3497.7,3496.8,0.35219052]
[1721406986659,7.47,3497.7,3496.8,3.21194052]
[1721406987001,7.47,3498.0,3496.8,3.21194052]
[1721406987289,3.12469376,3497.9,3496.8,0.35219052]
[1721406987455,3.12469376,3497.8,3496.8,0.06621352]
[1721406990054,0.12471242,3497.5,3496.5,0.0662047]
[1721406990264,0.12471242,3497.5,3496.3,2.3839]
[1721406990467,0.12471242,3497.5,3496.6,0.06615478]
[1721406990691,0.12471242,3497.5,3496.4,0.06617622]
[1721406990848,0.49142779,3497.5,3496.7,0.06614406]
[1721406991044,0.12471242,3497.4,3496.5,0.0661655]
[1721406991352,0.12471242,3497.4,3496.3,2.3839]
[1721406991895,0.12471599,3497.3,3496.4,0.06623323]
[1721406992182,0.36671537,3497.5,3496.3,2.3839]
[1721406992183,0.12471599,3497.2,3496.3,2.3839]
[1721406992387,0.12471599,3497.1,3496.3,2.3839]
[1721406992550,3.36671537,3497.5,3496.3,2.3839]
[1721406992746,1.26263278,3497.4,3496.3,2.3839]
[1721406993054,0.12471712,3497.3,3496.3,2.3839]
[1721406993463,0.12471712,3497.3,3496.4,0.06623323]
[1721406993663,0.12471712,3497.3,3496.3,2.3839]
[1721406993964,3.36671537,3497.5,3496.4,2.92631323]
[1721406993965,3.0,3497.5,3496.4,2.92631323]
[1721406994159,0.12470854,3497.4,3496.5,0.53102132]
[1721406994365,0.12470854,3497.3,3496.5,0.53102132]
[1721406994584,7.47,3497.6,3496.6,0.06622605]
[1721406994789,0.1247014,3497.5,3496.6,0.06622605]
[1721406995084,0.12469936,3497.4,3496.7,2.476]
[1721406995303,7.47,3497.6,3496.8,0.30732474]
[1721406995593,0.12469814,3497.5,3496.8,0.30732474]
[1721406995792,0.12469814,3497.4,3496.8,0.30732474]
[1721406995980,7.47,3497.6,3496.9,0.06614757]
[1721406996163,0.12469887,3497.5,3496.9,0.06614757]
[1721406996363,0.12469887,3497.4,3496.9,0.06614757]
[1721406996683,0.12470123,3497.3,3496.9,0.06614757]
[1721406996871,7.47,3497.6,3496.9,0.06614757]
[1721406997076,0.12470013,3497.5,3496.9,0.06614757]
[1721406997380,7.47,3497.6,3497.1,2.4023]
[1721406997587,3.0,3497.9,3497.1,2.4023]
[1721406997794,0.12468902,3497.8,3497.2,0.88481186]
[1721406997961,0.12468902,3497.7,3497.2,0.88481186]
[1721406998165,7.47,3498.0,3497.2,2.9254641]
[1721406998750,7.47,3498.0,3497.3,2.85934]
[1721406998947,7.47,3498.4,3497.8,2.85888]
[1721406999194,7.47,3498.4,3497.5,5.9434]
[1721406999195,7.47,3498.8,3498.2,2.85856]
[1721406999402,7.47,3498.8,3498.3,0.571719]
[1721406999693,7.47,3498.8,3498.3,0.63756443]
[1721407000396,7.47,3498.8,3498.3,0.06584543]
[1721407000750,7.47,3498.8,3498.0,2.4134]
[1721407000979,7.47,3498.8,3498.4,0.0656798]
[1721407001202,7.47,3498.8,3498.0,2.4134]
[1721407001387,7.47,3498.8,3498.5,0.06566375]
[1721407001692,7.47,3499.3,3498.0,5.27217]
[1721407001992,7.47,3499.3,3498.1,0.527217]
[1721407002156,7.47,3499.3,3498.1,0.59292359]
[1721407002358,3.0,3499.2,3498.1,0.59292359]
[1721407003397,7.47,3499.3,3498.1,3.45159359]
[1721407003778,7.47,3499.3,3498.2,2.323]
[1721407003983,7.47,3499.3,3498.3,0.29159236]
[1721407004159,7.47,3499.3,3498.3,0.35725617]
[1721407005759,7.47,3499.3,3498.3,0.06566381]
[1721407005954,3.0,3499.2,3498.3,0.06566381]
[1721407006157,3.0,3499.2,3498.2,2.323]
[1721407007394,3.0,3499.2,3497.2,2.462]
[1721407007581,3.0,3499.2,3497.3,0.5462]
[1721407007582,1.72166634,3499.1,3497.3,0.5462]
[1721407007792,1.72166634,3499.1,3497.3,0.61178745]
[1721407008092,0.12466977,3499.0,3497.3,0.06558745]
[1721407008292,0.12466977,3498.9,3497.3,0.06558745]
[1721407008506,1.597,3499.1,3497.3,0.06558745]
[1721407008657,0.12467088,3499.0,3497.3,0.06558745]
[1721407008857,0.59683797,3498.9,3497.4,0.25275875]
[1721407009192,0.12467401,3498.8,3497.5,0.06556602]
[1721407009491,0.47216709,3498.9,3497.5,0.06556602]
[1721407009662,0.12468057,3498.8,3497.2,2.462]
[1721407009857,0.12468057,3498.7,3497.2,2.462]
[1721407010062,2.4459,3498.8,3497.3,0.06566579]
[1721407010394,2.4459,3498.8,3497.2,2.462]
[1721407010395,0.96648811,3498.7,3497.2,2.462]
[1721407010557,0.1246814,3498.6,3497.2,2.462]
[1721407010762,0.55,3498.5,3497.3,0.06350912]
[1721407011015,0.55,3498.5,3497.2,2.462]
[1721407011297,0.55,3498.5,3495.8,5.87754]
[1721407011298,0.12469688,3498.4,3496.2,2.3934]
[1721407011468,0.67469688,3498.3,3496.3,0.525372]
[1721407011667,0.12469688,3498.2,3496.3,0.06369109]
[1721407012365,2.3315,3498.1,3496.3,0.06369109]
[1721407012693,0.67469688,3498.0,3496.3,0.06369109]
[1721407012865,0.12469688,3497.9,3496.3,0.06369109]
[1721407013457,3.55,3498.0,3496.3,0.06369109]
[1721407013689,0.7128568,3497.9,3496.4,0.24570911]
[1721407013876,0.58815,3497.9,3496.4,0.24570911]
[1721407014198,0.58815,3497.9,3496.5,0.063732]
[1721407016591,0.12471172,3497.8,3496.5,0.063732]
[1721407016786,0.58815,3497.9,3496.5,0.063732]
[1721407016987,1.33609699,3497.8,3496.2,2.3934]
[1721407017196,0.12471358,3497.7,3496.2,2.3934]
[1721407017494,0.55,3497.6,3496.3,0.06187881]
[1721407017695,1.21138341,3497.8,3496.3,0.06187881]
[1721407017696,4.21138341,3497.8,3496.3,0.06187881]
[1721407017858,0.12471972,3497.7,3496.2,2.3934]
[1721407018060,4.21138341,3497.8,3496.2,2.3934]
[1721407018061,1.33714503,3497.6,3496.2,2.3934]
[1721407018272,1.21242531,3497.6,3496.2,2.3934]
[1721407018871,1.21242531,3497.6,3496.3,0.06187881]
[1721407019078,0.66242531,3497.6,3496.4,0.05719852]
[1721407019282,0.66242531,3497.6,3496.3,0.06187881]
[1721407019469,0.58815,3497.9,3496.4,0.24552788]
[1721407019684,0.58815,3497.9,3496.4,0.30739597]
[1721407019685,0.67471027,3497.8,3496.4,0.30739597]
[1721407019892,0.12471027,3497.7,3496.4,0.06186809]
[1721407020094,0.58815,3497.9,3496.2,2.3934]
[1721407020317,0.12470928,3497.8,3496.5,0.06185737]
[1721407020614,0.67470928,3497.7,3496.6,0.06184665]
[1721407020770,0.55,3497.7,3496.6,0.06184665]
[1721407020975,0.55,3497.8,3496.2,2.3934]
[1721407021196,0.413815,3497.7,3496.7,0.06183593]
[1721407021396,0.413815,3497.7,3496.3,0.23934]
[1721407021807,0.413815,3497.7,3496.4,0.05966752]
[1721407022793,0.413815,3497.7,3496.3,0.23934]
[1721407023402,0.413815,3497.7,3496.2,2.3934]
[1721407023804,0.413815,3497.7,3496.3,0.05967824]
[1721407024190,0.413815,3497.7,3495.4,2.86089]
[1721407024191,3.53,3497.4,3495.2,2.4246]
[1721407024408,3.53,3497.4,3495.0,0.44838069]
[1721407024409,3.53,3497.4,3495.5,2.4246]
[1721407024714,3.71760974,3497.3,3495.7,2.4246]
[1721407024892,3.59288142,3497.3,3495.7,2.4246]
[1721407025092,0.67473421,3497.2,3495.8,0.05774257]
[1721407025291,0.12473421,3497.1,3495.7,2.4246]
[1721407025479,0.97676156,3497.0,3495.8,0.05774257]
[1721407025687,0.42676156,3497.0,3495.8,0.05774257]
[1721407025913,0.42676156,3497.0,3495.7,2.4246]
[1721407026237,0.12474856,3496.9,3495.7,2.4246]
[1721407026422,0.42676156,3497.0,3495.7,2.4246]
[1721407026720,0.42676156,3497.0,3495.8,0.05792192]
[1721407027023,0.42676156,3497.0,3495.7,2.4246]
[1721407027394,0.42676156,3497.0,3495.8,0.05792192]
[1721407027808,0.42676156,3497.0,3495.7,2.4246]
[1721407028219,0.42676156,3497.0,3495.8,0.05792192]
[1721407028420,0.42676156,3497.0,3495.7,2.38186701]
[1721407029297,0.42676156,3497.0,3495.8,0.05792192]
[1721407029497,0.42676156,3497.0,3495.7,2.38186701]
[1721407030096,0.42676156,3497.0,3495.8,0.05792192]
[1721407030300,0.42676156,3497.0,3495.7,2.38186701]
[1721407030501,0.42676156,3497.0,3495.8,0.05792192]
[1721407030709,0.42676156,3497.0,3495.7,2.38186701]
[1721407030931,0.42676156,3497.0,3495.8,0.2381867]
[1721407031308,11.06288142,3497.3,3495.8,0.2381867]
[1721407031525,11.06288142,3497.3,3495.9,2.3836]
[1721407031526,7.47,3497.3,3495.9,2.3836]
[1721407031726,7.47,3497.6,3496.1,2.3836]
[1721407032245,7.47,3497.6,3496.3,2.3836]
[1721407032595,7.47,3497.6,3496.4,0.0578718]
[1721407033939,7.47,3497.6,3496.5,2.332]
[1721407034138,7.47,3498.0,3496.6,2.57098718]
[1721407034436,7.47,3498.3,3496.8,2.332]
[1721407034838,7.47,3498.3,3496.9,0.0575495]
[1721407035056,7.47,3498.3,3497.0,2.3864]
[1721407035261,7.47,3498.6,3497.1,2.63079495]
[1721407035555,7.47,3498.6,3497.3,2.3864]
[1721407035721,12.19,3499.2,3497.3,2.3864]
[1721407035722,7.47,3498.9,3497.3,2.3864]
[1721407036039,7.47,3498.9,3497.4,0.05739473]
[1721407036250,0.747,3498.8,3497.5,0.54437947]
[1721407036544,0.747,3498.8,3497.6,0.0573733]
[1721407036747,7.47,3498.9,3497.7,2.3329]
[1721407036907,7.47,3498.9,3497.8,0.05735188]
[1721407039621,3.55,3498.8,3497.8,0.05735188]
[1721407039816,3.55,3498.8,3497.7,2.3329]
[1721407040047,1.102,3498.7,3497.7,2.3329]
[1721407040648,0.55,3498.6,3496.0,2.4811]
[1721407040820,0.55,3498.6,3496.1,2.4811]
[1721407041151,0.55,3498.6,3496.2,2.4811]
[1721407041358,0.55,3498.6,3496.3,0.05745049]
[1721407041510,0.4652,3498.5,3496.4,2.4811]
[1721407041847,0.55,3498.4,3496.5,2.53852905]
[1721407042011,0.4652,3498.5,3496.5,2.53852905]
[1721407042215,1.102,3498.7,3496.7,2.85977]
[1721407042412,1.102,3498.7,3496.8,2.4811]
[1721407042642,1.102,3498.7,3496.8,2.5384969]
[1721407043729,0.67469184,3498.6,3496.8,2.4811]
[1721407043914,0.55,3498.6,3496.9,0.05725345]
[1721407044110,0.4652,3498.5,3496.9,0.05725345]
[1721407044349,0.55,3498.4,3496.9,0.05725345]
[1721407044566,0.55,3498.4,3497.0,2.2884]
[1721407044854,0.55,3498.4,3497.0,2.34564273]
[1721407045158,0.55,3498.6,3497.0,2.34564273]
[1721407045450,0.58989566,3498.5,3497.0,2.34564273]
[1721407045652,0.55,3498.4,3497.0,2.34564273]
[1721407046659,3.4652,3498.5,3497.0,2.34564273]
[1721407046952,0.4652,3498.5,3497.0,2.34564273]
[1721407047153,3.0,3498.4,3497.0,2.34564273]
[1721407047457,1.102,3498.7,3497.2,2.3873]
[1721407047940,1.102,3498.7,3497.4,2.3873]
[1721407049529,2.77068274,3498.6,3497.4,2.3873]
[1721407049728,3.12469275,3498.5,3497.4,2.3873]
[1721407049928,0.67469275,3498.4,3497.4,2.3873]
[1721407050139,0.81176203,3498.3,3497.4,2.3873]
[1721407050337,0.68706928,3498.3,3497.4,2.3873]
[1721407051312,3.0,3498.6,3497.4,2.3873]
[1721407051431,0.12468905,3498.5,3497.4,2.3873]
[1721407051791,0.12468905,3498.4,3497.4,2.3873]
[1721407051927,0.12468905,3498.3,3497.4,2.3873]
[1721407052132,3.0,3498.6,3497.4,2.3873]
[1721407052435,0.88768688,3498.5,3497.4,2.3873]
[1721407052629,0.12468688,3498.4,3497.4,2.3873]
[1721407055565,0.12469656,3498.3,3497.4,2.3873]
[1721407055755,0.12469656,3498.2,3497.4,2.3873]
[1721407055959,0.12469646,3498.1,3497.4,2.3873]
[1721407056130,0.763,3498.5,3497.4,2.3873]
[1721407056341,1.75670459,3498.4,3497.4,2.3873]
[1721407056542,0.12469633,3498.3,3497.4,2.3873]
[1721407056744,0.12469633,3498.2,3497.4,2.3873]
[1721407056943,0.12469633,3498.1,3497.4,2.3873]
[1721407057249,1.63200826,3498.4,3497.4,2.3873]
[1721407057250,0.12469689,3498.0,3497.4,2.3873]
[1721407057595,7.47,3498.3,3497.4,2.3873]
[1721407057752,4.03490053,3498.2,3497.4,2.3873]
[1721407058058,0.1246997,3498.1,3497.4,2.3873]
[1721407058266,0.1246997,3498.0,3497.4,2.3873]
[1721407058456,3.91020083,3498.2,3497.4,2.3873]
[1721407058837,0.12469967,3498.1,3497.4,2.3873]
[1721407059043,3.91020083,3498.2,3497.4,2.3873]
[1721407059044,1.27518972,3498.0,3497.4,2.3873]
[1721407059280,1.15049005,3498.0,3497.4,2.3873]
[1721407061470,0.12470292,3497.9,3497.4,2.3873]
[1721407061784,1.15049005,3498.0,3497.4,2.3873]
[1721407061943,0.12470295,3497.9,3497.4,2.3873]
[1721407062140,1.15049005,3498.0,3497.4,2.3873]
[1721407062446,0.63077132,3497.9,3497.4,2.3873]
[1721407062761,0.50606909,3497.9,3497.4,2.3873]
[1721407070913,1.15049005,3498.0,3497.4,2.3873]
[1721407071129,0.12469977,3497.9,3497.4,2.3873]
[1721407071329,1.15049005,3498.0,3497.4,2.3873]
[1721407071625,0.12469977,3497.9,3497.4,2.3873]
[1721407071920,1.15049005,3498.0,3497.4,2.3873]
[1721407072217,0.12469995,3497.9,3497.4,2.3873]
[1721407072386,1.15049005,3498.0,3497.4,2.3873]
[1721407072584,0.12469996,3497.9,3497.4,2.3873]
[1721407072835,0.12469996,3497.8,3497.4,2.3873]
[1721407073027,1.15049005,3498.0,3497.4,2.3873]
[1721407073330,0.12470013,3497.9,3497.4,2.3873]
[1721407073625,0.12470013,3497.8,3497.4,2.3873]
[1721407073787,1.15049005,3498.0,3497.4,2.3873]
[1721407074132,0.12469968,3497.9,3497.4,2.3873]
[1721407074292,0.12469968,3497.8,3497.4,2.3873]
[1721407074489,0.12469968,3497.7,3497.4,2.3873]
[1721407074823,2.7707005,3497.6,3496.0,2.3599]
[1721407075023,0.1247005,3497.5,3496.0,2.61970867]
[1721407075234,0.12471981,3497.4,3496.0,2.61970867]
[1721407075386,0.12471981,3497.3,3496.0,2.61970867]
[1721407075589,0.12471981,3497.2,3496.0,2.61970867]
[1721407075824,0.12471838,3497.1,3496.2,2.4429]
[1721407076033,2.646,3497.6,3496.2,2.4429]
[1721407076326,0.12472002,3497.5,3496.2,2.4429]
[1721407076544,0.12472002,3497.4,3496.2,2.4429]
[1721407076706,2.646,3497.6,3496.2,2.4429]
[1721407076707,0.12472002,3497.3,3496.2,2.4429]
[1721407076890,0.12472002,3497.2,3496.2,2.4429]
[1721407077732,0.12472002,3497.1,3496.2,2.4429]
[1721407077944,0.12472002,3497.0,3496.2,2.4429]
[1721407078136,3.0,3497.8,3496.2,2.4429]
[1721407078297,0.12471985,3497.7,3496.2,2.4429]
[1721407078633,1.44879408,3497.6,3496.2,2.4429]
[1721407078938,0.12472209,3497.5,3496.2,2.4429]
[1721407080498,0.12472209,3497.4,3496.2,2.4429]
[1721407080700,0.12472209,3497.3,3496.2,2.4429]
[1721407080996,3.0,3497.8,3496.2,2.4429]
[1721407081195,1.97077385,3497.7,3496.2,2.4429]
[1721407081462,0.12472043,3497.6,3496.2,2.4429]
[1721407083432,0.12472043,3497.6,3496.3,0.05004433]
[1721407083628,0.12472043,3497.6,3496.4,2.3243]
[1721407083835,0.12472043,3497.5,3496.4,2.37438334]
[1721407084040,3.0,3497.8,3496.6,2.3243]
[1721407084243,0.12470292,3497.7,3496.6,2.3243]
[1721407084551,0.12470292,3497.6,3496.6,2.3243]
[1721407084741,0.12470346,3497.5,3496.6,2.3243]
[1721407084939,0.1247058,3497.4,3496.7,0.05005119]
[1721407085154,0.1247058,3497.3,3496.6,2.3243]
[1721407085354,0.12471307,3497.2,3496.6,2.3243]
[1721407085564,3.0,3497.8,3496.6,2.3243]
[1721407085770,3.0,3497.8,3496.7,0.05005119]
[1721407085771,1.55136156,3497.7,3496.7,0.05005119]
[1721407085971,1.55136156,3497.7,3496.6,2.3243]
[1721407085972,0.12471255,3497.6,3496.6,2.3243]
[1721407087352,1.42664901,3497.7,3496.6,2.3243]
[1721407087574,0.12471784,3497.6,3496.6,2.3243]
[1721407090788,0.12471523,3497.5,3496.6,2.3243]
[1721407090974,0.12471523,3497.4,3496.6,2.3243]
[1721407091170,0.12471523,3497.3,3496.6,2.3243]
[1721407091368,1.4542649,3497.6,3496.6,2.3243]
[1721407091369,0.12471523,3497.2,3496.6,2.3243]
[1721407091570,0.12471523,3497.1,3496.6,2.3243]
[1721407091770,0.12471523,3497.0,3496.7,0.05005119]
[1721407091979,1.4542649,3497.6,3496.6,2.3243]
[1721407092281,0.57014288,3497.5,3496.6,2.3243]
[1721407092483,0.12471639,3497.4,3496.6,2.3243]
[1721407092689,0.12471639,3497.3,3496.6,2.3243]
[1721407092863,0.12471639,3497.2,3496.6,2.3243]
[1721407093063,0.12471639,3497.1,3496.6,2.3243]
[1721407093253,3.0,3497.8,3496.7,0.05005119]
[1721407093455,1.43631414,3497.7,3496.7,0.05005119]
[1721407093654,0.12471414,3497.6,3496.6,2.3243]
[1721407093868,1.3116,3497.7,3496.6,2.3243]
[1721407094086,0.12471517,3497.6,3496.6,2.3243]
[1721407094287,2.77071517,3497.5,3496.6,2.3243]
[1721407094574,0.53294669,3497.4,3496.6,2.3243]
[1721407094795,0.12471517,3497.3,3496.6,2.3243]
[1721407096811,0.12471517,3497.2,3496.6,2.3243]
[1721407096962,0.12471517,3497.1,3496.6,2.3243]
[1721407097164,1.3116,3497.7,3496.6,2.3243]
[1721407097464,1.56747513,3497.6,3496.6,2.3243]
[1721407097776,0.12471513,3497.5,3496.6,2.3243]
[1721407097972,2.77071513,3497.5,3496.6,2.3243]
[1721407098191,3.12471513,3497.4,3496.6,2.3243]
[1721407098501,0.12471513,3497.3,3496.6,2.3243]
[1721407098705,0.57707151,3497.2,3496.6,2.3243]
[1721407098909,0.12471513,3497.1,3496.6,2.3243]
[1721407100264,1.44276,3497.6,3496.6,2.3243]
[1721407100607,0.12471882,3497.5,3496.6,2.3243]
[1721407100815,1.44276,3497.6,3496.6,2.3243]
[1721407101111,0.5689947,3497.5,3496.6,2.3243]
[1721407101281,0.1247187,3497.4,3496.6,2.3243]
[1721407102164,0.444276,3497.5,3496.6,2.3243]
[1721407102165,0.12472267,3497.3,3496.6,2.3243]
[1721407102366,0.12472267,3497.2,3496.6,2.3243]
[1721407102597,0.12472267,3497.1,3496.6,2.3243]
[1721407102819,0.12472267,3497.0,3496.6,2.3243]
[1721407102978,0.12472267,3496.9,3496.6,2.3243]
[1721407103189,0.12472267,3496.8,3496.6,2.3243]
[1721407103511,0.12472267,3496.7,3496.6,2.3243]
[1721407103726,2.646,3497.1,3496.7,0.05001922]
[1721407103904,2.646,3497.1,3496.6,2.3243]
[1721407103905,3.38933416,3497.0,3496.6,0.05002994]
[1721407104120,0.12473416,3496.9,3496.2,2.4534]
[1721407106780,3.2646,3497.0,3496.2,2.4534]
[1721407106933,0.7158023,3496.9,3496.2,2.4534]
[1721407107272,0.1247423,3496.8,3496.2,2.4534]
[1721407107438,0.59106,3496.9,3496.2,2.4534]
[1721407107439,0.1247423,3496.7,3496.2,2.4534]
[1721407107668,0.1247423,3496.6,3496.3,0.05017573]
[1721407107865,0.1247423,3496.5,3496.2,2.4534]
[1721407108170,0.1247423,3496.4,3496.2,2.4534]
[1721407108345,0.1247423,3496.3,3496.2,2.4534]
[1721407108727,0.1247423,3496.7,3496.2,2.4534]
[1721407109061,0.1247423,3496.6,3496.2,2.4534]
[1721407109378,0.1247423,3496.5,3496.2,2.4534]
[1721407112351,2.646,3496.3,3494.7,2.2513]
[1721407112557,0.1247423,3496.2,3494.7,2.2513]
[1721407112941,3.1247423,3496.2,3494.7,2.2513]
[1721407113145,0.70184717,3496.1,3494.7,2.2513]
[1721407113385,0.12477294,3496.0,3494.7,2.2513]
[1721407113542,0.57707423,3496.1,3494.7,2.2513]
[1721407113741,0.1247776,3496.0,3494.7,2.2513]
[1721407113944,0.1247776,3495.9,3494.7,2.2513]
[1721407114177,0.1247776,3495.8,3494.7,2.2513]
[1721407114773,0.37018518,3495.9,3494.7,2.2513]
[1721407116964,0.37018518,3495.9,3494.8,0.04718398]
[1721407117167,3.01618518,3495.9,3494.8,0.04718398]
[1721407117445,2.646,3495.5,3493.4,2.3425]
[1721407117653,0.2646,3495.4,3493.6,2.3425]
[1721407117888,3.2646,3495.4,3493.7,0.04730203]
[1721407118099,3.0,3495.4,3493.9,2.3425]
[1721407118275,0.55,3495.3,3494.1,2.3425]
[1721407118785,3.0,3495.7,3493.8,0.04751987]
[1721407118786,0.55,3495.6,3494.2,0.04747694]
[1721407119101,0.55,3495.6,3493.6,5.50836]
[1721407119254,1.102,3495.5,3494.3,0.04457922]
[1721407119451,0.55,3495.4,3493.7,7.0929772]
[1721407119650,0.55,3495.4,3493.8,2.90682289]
[1721407120058,0.55,3495.4,3493.8,0.04463289]
[1721407120987,3.55,3495.4,3493.8,0.04463289]
[1721407121289,3.55,3495.4,3493.9,0.71376001]
[1721407121532,3.0,3495.3,3493.8,2.96402132]
[1721407121693,3.0,3495.3,3493.6,5.646]
[1721407121694,0.55,3495.2,3494.0,0.04461142]
[1721407121898,0.55,3495.4,3494.1,2.494]
[1721407122047,0.55,3495.6,3494.1,2.53860069]
[1721407122253,1.102,3495.5,3494.1,2.53860069]
[1721407122568,0.60722574,3495.4,3494.1,2.53860069]
[1721407122757,3.60722574,3495.4,3494.1,2.53860069]
[1721407123273,2.646,3495.1,3494.1,2.53860069]
[1721407123599,3.60722574,3495.0,3494.1,2.494]
[1721407123891,0.87420257,3494.9,3493.2,2.3688]
[1721407124184,2.646,3494.7,3493.2,2.3688]
[1721407124388,0.55,3494.6,3493.3,0.04310187]
[1721407125189,0.60722574,3494.6,3493.3,0.04310187]
[1721407125440,0.55,3494.6,3493.3,0.04310187]
[1721407125737,0.32532257,3494.5,3493.3,0.04310187]
[1721407125878,0.55,3494.4,3493.3,0.04310187]
[1721407127106,0.55,3494.4,3493.4,2.423]
[1721407127314,3.748,3495.5,3493.3,0.1003403]
[1721407127315,1.102,3495.5,3493.6,2.423]
[1721407127524,1.102,3495.5,3493.7,2.86229]
[1721407127827,5.506,3495.9,3494.2,2.8618]
[1721407127828,2.86,3495.9,3494.2,2.8618]
[1721407127975,14.4566,3496.1,3494.3,5.32419]
[1721407128183,14.4566,3496.1,3494.3,2.50410138]
[1721407128694,14.4566,3496.1,3494.6,2.4624]
[1721407128695,12.19,3496.1,3494.6,2.4624]
[1721407129177,12.19,3496.1,3494.7,0.04148336]
[1721407129381,12.19,3496.1,3494.8,0.25038834]
[1721407129686,12.19,3496.1,3494.9,0.04146191]
[1721407129908,7.47,3495.8,3494.9,0.04146191]
[1721407130295,3.0,3495.7,3494.9,0.04146191]
[1721407130520,3.0,3495.7,3494.6,2.4624]
[1721407130719,3.0,3495.7,3494.7,0.24624]
[1721407130916,3.0,3495.7,3494.7,0.04146922]
[1721407131103,0.60722574,3495.6,3494.7,0.04146922]
[1721407131613,0.60722574,3495.6,3494.6,2.4624]
[1721407132836,0.55,3495.6,3494.6,2.4624]
[1721407133040,0.60722574,3495.6,3494.6,2.4624]
[1721407133212,1.35519257,3495.5,3494.6,2.4624]
[1721407133410,0.60722574,3495.4,3494.6,2.4624]
[1721407133722,0.55,3495.4,3494.6,2.4624]
[1721407134810,0.60722574,3495.4,3494.1,2.472]
[1721407135012,3.60722574,3495.4,3494.1,2.472]
[1721407135346,0.76084183,3495.3,3494.1,2.472]
[1721407135545,0.60722574,3495.2,3494.1,2.472]
[1721407135841,0.60722574,3495.2,3494.2,0.0415547]
[1721407136014,0.60722574,3495.2,3494.1,2.472]
[1721407136744,0.55,3495.2,3494.1,2.472]
[1721407136946,0.43108418,3495.1,3494.1,2.472]
[1721407137169,0.55,3495.0,3494.2,0.04155293]
[1721407137441,0.60722574,3495.0,3494.1,2.472]